[Event "26th Hit Open-A 2022"]
[Site "Nova Gorica"]
[Date "2022.09.17"]
[Round "2.6"]
[White "Kaasen, Tor Fredrik"]
[Black "Guid, Matej"]
[Result "1/2-1/2"]
[ECO "C10"]
[WhiteElo "2442"]
[BlackElo "2292"]
[Annotator "ChessBase"]
[PlyCount "94"]
[EventDate "2022.09.16"]
[EventType "swiss"]
[EventCountry "SLO"]
[SourceTitle "playchess.com"]
[Source "ChessBase"]
[SourceQuality "1"]
[TimeControl "5400+30"]

1. e4 {[%emt 0:02:29]} e6 {[%emt 0:00:04]} 2. d4 {[%emt 0:00:38]} d5 {[%emt 0:00:03]} 3. Nc3 {[%emt 0:00:25]} dxe4 {[%emt 0:00:05]} 4. Nxe4 {[%emt 0:00:25]} Nd7 {[%emt 0:00:03]} 5. Nf3 {[%emt 0:00:45]} Ngf6 {[%emt 0:00:07]} 6. Nxf6+ {[%emt 0:01:14]} Nxf6 {[%emt 0:00:08]} 7. Be3 {[%emt 0:02:17]} Bd6 {[%emt 0:01:27]} 8. Bd3 {[%emt 0:00:52]} b6 {[%emt 0:04:02]} 9. Qe2 {[%emt 0:01:26]} Bb7 {[%emt 0:06:08]} 10. O-O-O {[%emt 0:01:17]} O-O {[%emt 0:00:19]} 11. Kb1 {[%emt 0:00:31]} c5 {[%emt 0:02:28]} 12. Bg5 {[%emt 0:02:38]} h6 {[%emt 0:03:45]} 13. Bh4 {[%emt 0:01:30]} Rc8 {[%emt 0:01:02]} 14. Rhe1 {[%emt 0:02:45]} Bxf3 {[%emt 0:08:47]} 15. Qxf3 {[%emt 0:07:36]} c4 {[%emt 0:02:23]} 16. Be4 {[%emt 0:08:28]} g5 {[%emt 0:00:04]} 17. Bg3 {[%emt 0:01:26]} Bxg3 {[%emt 0:00:08]} 18. hxg3 {[%emt 0:03:02]} Kg7 {[%emt 0:09:04]} 19. Qe3 {[%emt 0:21:11]} c3 {[%emt 0:05:03]} 20. f4 {[%emt 0:04:23]} Qd6 {[%emt 0:10:16]} 21. bxc3 {[%emt 0:04:26]} Nxe4 {[%emt 0:04:14]} 22. Qxe4 {[%emt 0:01:58]} Rxc3 {[%emt 0:00:28]} 23. fxg5 {[%emt 0:07:34]} hxg5 {[%emt 0:00:48]} 24. d5 {[%emt 0:03:17]} exd5 {[%emt 0:06:16]} 25. Rxd5 {[%emt 0:01:33]} Qf6 {[%emt 0:00:47]} 26. Rf5 {[%emt 0:07:49]} Re8 {[%emt 0:00:17]} 27. Rxg5+ {[%emt 0:00:50]} Qxg5 {[%emt 0:00:07]} 28. Qxe8 {[%emt 0:00:29]} Rc5 {[%emt 0:04:29]} 29. Qe3 {[%emt 0:03:56]} Qf6 {[%emt 0:05:54]} 30. Qd3 {[%emt 0:02:43]} a6 {[%emt 0:03:22]} 31. c4 {[%emt 0:03:07]} b5 {[%emt 0:01:06]} 32. Rf1 {[%emt 0:00:23]} bxc4 {[%emt 0:04:50]} 33. Qh7+ {[%emt 0:00:24]} Kxh7 {[%emt 0:00:07]} 34. Rxf6 {[%emt 0:00:05]} Rb5+ {[%emt 0:06:52]} 35. Kc1 {[%emt 0:00:14]} Ra5 {[%emt 0:01:04]} 36. Rxf7+ {[%emt 0:01:52]} Kg6 {[%emt 0:00:05]} 37. Rf2 {[%emt 0:00:14]} Ra3 {[%emt 0:02:21]} 38. Kb2 {[%emt 0:02:22]} Rxg3 {[%emt 0:00:15]} 39. Rc2 {[%emt 0:00:11]} Kf5 {[%emt 0:00:35]} 40. Rxc4 {[%emt 0:00:14]} Rxg2+ {[%emt 0:00:07]} 41. Kb3 {[%emt 0:00:03]} Rg6 {[%emt 0:00:40]} 42. Kb4 {[%emt 0:00:24]} Ke5 {[%emt 0:02:44]} 43. Ka5 {[%emt 0:00:28]} Kd5 {[%emt 0:00:23]} 44. Rc8 {[%emt 0:00:06]} Rc6 {[%emt 0:01:10]} 45. Rh8 {[%emt 0:01:17]} Kd6 {[%emt 0:00:18]} 46. Rh6+ {[%emt 0:00:13]} Kc7 {[%emt 0:00:09]} 47. Rxc6+ {[%emt 0:00:05]} Kxc6 {[%emt 0:00:13]} 1/2-1/2

[Event "26th Hit Open-A 2022"]
[Site "Nova Gorica"]
[Date "2022.09.17"]
[Round "2.7"]
[White "Van Dael, Siem"]
[Black "Ghazarian, Kirk"]
[Result "1/2-1/2"]
[ECO "B90"]
[WhiteElo "2316"]
[BlackElo "2440"]
[Annotator "ChessBase"]
[PlyCount "84"]
[EventDate "2022.09.16"]
[EventType "swiss"]
[EventCountry "SLO"]
[SourceTitle "playchess.com"]
[Source "ChessBase"]
[SourceQuality "1"]
[TimeControl "5400+30"]

1. e4 {[%emt 0:00:07]} c5 {[%emt 0:00:05]} 2. Nf3 {[%emt 0:00:06]} d6 {[%emt 0:00:13]} 3. d4 {[%emt 0:00:05]} cxd4 {[%emt 0:00:09]} 4. Nxd4 {[%emt 0:00:06]} Nf6 {[%emt 0:00:06]} 5. Nc3 {[%emt 0:00:04]} a6 {[%emt 0:00:11]} 6. Be3 {[%emt 0:00:23]} e5 {[%emt 0:00:10]} 7. Nb3 {[%emt 0:00:05]} Be7 {[%emt 0:00:17]} 8. f3 {[%emt 0:00:12]} Be6 {[%emt 0:00:06]} 9. Qd2 {[%emt 0:00:04]} h5 {[%emt 0:00:18]} 10. O-O-O {[%emt 0:01:32]} Nbd7 {[%emt 0:00:07]} 11. Kb1 {[%emt 0:00:57]} Rc8 {[%emt 0:00:23]} 12. f4 {[%emt 0:01:00]} b5 {[%emt 0:04:52]} 13. Bd3 {[%emt 0:00:22]} Nb6 {[%emt 0:09:29]} 14. Bxb6 {[%emt 0:09:35]} Qxb6 {[%emt 0:00:08]} 15. Nd5 {[%emt 0:00:04]} Bxd5 {[%emt 0:24:11]} 16. exd5 {[%emt 0:01:01]} O-O {[%emt 0:03:23]} 17. Rhe1 {[%emt 0:05:47]} Qc7 {[%emt 0:04:04]} 18. Bf5 {[%emt 0:04:43]} Rcd8 {[%emt 0:02:21]} 19. Qa5 {[%emt 0:10:23]} Qc4 {[%emt 0:10:13]} 20. g3 {[%emt 0:04:43]} Nxd5 {[%emt 0:06:51]} 21. Bd3 {[%emt 0:02:05]} Qc8 {[%emt 0:01:54]} 22. a4 {[%emt 0:14:14]} Nc7 {[%emt 0:01:45]} 23. fxe5 {[%emt 0:02:36]} dxe5 {[%emt 0:07:27]} 24. Rxe5 {[%emt 0:00:07]} Qg4 {[%emt 0:07:34]} 25. Rf1 {[%emt 0:03:47]} Bd6 {[%emt 0:00:49]} 26. Re4 {[%emt 0:01:43]} Qd7 {[%emt 0:03:18]} 27. Nd4 {[%emt 0:05:39]} g6 {[%emt 0:04:16]} 28. Qd2 {[%emt 0:07:02]} Rfe8 {[%emt 0:01:30]} 29. Rxe8+ {[%emt 0:11:31]} Rxe8 {[%emt 0:00:29]} 30. axb5 {[%emt 0:03:23]} axb5 {[%emt 0:01:07]} 31. Qg5 {[%emt 0:04:00]} Be5 {[%emt 0:05:29]} 32. Nf5 {[%emt 0:01:19]} Bg7 {[%emt 0:00:49]} 33. Nxg7 {[%emt 0:02:30]} Kxg7 {[%emt 0:00:02]} 34. h4 {[%emt 0:01:27]} Qd6 {[%emt 0:02:05]} 35. Bxb5 {[%emt 0:02:34]} Re5 {[%emt 0:00:48]} 36. Qf4 {[%emt 0:00:42]} Nxb5 {[%emt 0:00:41]} 37. Qxf7+ {[%emt 0:00:04]} Kh6 {[%emt 0:00:04]} 38. Qg8 {[%emt 0:01:39]} Nc3+ {[%emt 0:00:26]} 39. Kc1 {[%emt 0:00:57]} Ne2+ {[%emt 0:00:04]} 40. Kb1 {[%emt 0:00:03]} Nc3+ {[%emt 0:00:31]} 41. Kc1 {[%emt 0:00:04]} Ne2+ {[%emt 0:01:03]} 42. Kb1 {[%emt 0:00:05]} Nc3+ {[%emt 0:00:30]} 1/2-1/2

[Event "26th Hit Open-A 2022"]
[Site "Nova Gorica"]
[Date "2022.09.17"]
[Round "2.8"]
[White "Wadsworth, Matthew J"]
[Black "Herega, Nejc"]
[Result "1-0"]
[ECO "D77"]
[WhiteElo "2423"]
[BlackElo "2146"]
[Annotator "ChessBase"]
[PlyCount "47"]
[EventDate "2022.09.16"]
[EventType "swiss"]
[EventCountry "SLO"]
[SourceTitle "playchess.com"]
[Source "ChessBase"]
[SourceQuality "1"]
[TimeControl "5400+30"]

1. c4 {[%emt 0:01:52]} Nf6 {[%emt 0:00:12]} 2. Nf3 {[%emt 0:00:22]} g6 {[%emt 0:00:49]} 3. g3 {[%emt 0:00:15]} Bg7 {[%emt 0:00:22]} 4. Bg2 {[%emt 0:00:19]} d5 {[%emt 0:01:01]} 5. d4 {[%emt 0:01:29]} O-O {[%emt 0:01:46]} 6. O-O {[%emt 0:00:06]} dxc4 {[%emt 0:02:54]} 7. Na3 {[%emt 0:00:12]} c3 {[%emt 0:00:05]} 8. bxc3 {[%emt 0:00:23]} c5 {[%emt 0:00:08]} 9. Ne5 {[%emt 0:00:51]} Nfd7 {[%emt 0:08:13]} 10. Nac4 {[%emt 0:05:44]} Nxe5 {[%emt 0:04:31]} 11. Nxe5 {[%emt 0:00:07]} cxd4 {[%emt 0:10:19]} 12. cxd4 {[%emt 0:00:05]} Nc6 {[%emt 0:00:19]} 13. Nxc6 {[%emt 0:09:15]} bxc6 {[%emt 0:00:07]} 14. e3 {[%emt 0:01:03]} Qd6 {[%emt 0:13:13]} 15. Qa4 {[%emt 0:02:59]} Bd7 {[%emt 0:03:49]} 16. Ba3 {[%emt 0:01:39]} Qe6 {[%emt 0:02:57]} 17. Bc5 {[%emt 0:01:17]} Rfb8 {[%emt 0:03:13]} 18. Rab1 {[%emt 0:00:55]} Bh6 {[%emt 0:05:26]} 19. Rxb8+ {[%emt 0:00:39]} Rxb8 {[%emt 0:00:27]} 20. Qxa7 {[%emt 0:00:09]} Rb5 {[%emt 0:01:33]} 21. a4 {[%emt 0:01:10]} Rb3 {[%emt 0:00:40]} 22. Qa8+ {[%emt 0:00:21]} Kg7 {[%emt 0:01:21]} 23. d5 {[%emt 0:00:23]} cxd5 {[%emt 0:05:51]} 24. Bd4+ {[%emt 0:00:15]} 1-0

[Event "26th Hit Open-A 2022"]
[Site "Nova Gorica"]
[Date "2022.09.17"]
[Round "2.9"]
[White "Gschiel, Alexander"]
[Black "Beliavsky, Alexander G"]
[Result "1/2-1/2"]
[ECO "D18"]
[WhiteElo "2196"]
[BlackElo "2505"]
[Annotator "ChessBase"]
[PlyCount "73"]
[EventDate "2022.09.16"]
[EventType "swiss"]
[EventCountry "SLO"]
[SourceTitle "playchess.com"]
[Source "ChessBase"]
[SourceQuality "1"]
[TimeControl "5400+30"]

1. d4 {[%emt 0:00:03]} d5 {[%emt 0:05:50]} 2. c4 {[%emt 0:00:19]} c6 {[%emt 0:00:05]} 3. Nf3 {[%emt 0:01:14]} Nf6 {[%emt 0:00:08]} 4. Nc3 {[%emt 0:00:38]} dxc4 {[%emt 0:00:37]} 5. a4 {[%emt 0:02:08]} Bf5 {[%emt 0:00:13]} 6. e3 {[%emt 0:00:39]} e6 {[%emt 0:00:20]} 7. Bxc4 {[%emt 0:00:20]} Bb4 {[%emt 0:00:17]} 8. O-O {[%emt 0:01:04]} Nbd7 {[%emt 0:00:26]} 9. h3 {[%emt 0:03:03]} O-O {[%emt 0:04:55]} 10. Nh4 {[%emt 0:03:19]} Bg6 {[%emt 0:01:58]} 11. Nxg6 {[%emt 0:00:14]} hxg6 {[%emt 0:00:05]} 12. Qc2 {[%emt 0:07:57]} Rc8 {[%emt 0:07:31]} 13. Rd1 {[%emt 0:01:42]} Qe7 {[%emt 0:00:52]} 14. b3 {[%emt 0:03:31]} e5 {[%emt 0:08:11]} 15. dxe5 {[%emt 0:10:52]} Nxe5 {[%emt 0:00:29]} 16. Be2 {[%emt 0:00:10]} g5 {[%emt 0:04:04]} 17. Ne4 {[%emt 0:04:19]} Nxe4 {[%emt 0:08:06]} 18. Qxe4 {[%emt 0:00:02]} f5 {[%emt 0:00:11]} 19. Qc2 {[%emt 0:01:48]} a5 {[%emt 0:05:53]} 20. Bb2 {[%emt 0:01:22]} Rce8 {[%emt 0:00:53]} 21. Rac1 {[%emt 0:08:19]} Ba3 {[%emt 0:17:29]} 22. Bc4+ {[%emt 0:14:21]} Kh7 {[%emt 0:03:12]} 23. Bxa3 {[%emt 0:04:10]} Qxa3 {[%emt 0:00:04]} 24. Qe2 {[%emt 0:00:07]} Kh6 {[%emt 0:03:21]} 25. Qd2 {[%emt 0:05:56]} Nxc4 {[%emt 0:07:34]} 26. Rxc4 {[%emt 0:00:13]} Rd8 {[%emt 0:02:00]} 27. Qc2 {[%emt 0:01:31]} Rxd1+ {[%emt 0:04:36]} 28. Qxd1 {[%emt 0:00:01]} Qb2 {[%emt 0:00:10]} 29. Rd4 {[%emt 0:02:00]} f4 {[%emt 0:01:42]} 30. Rd6+ {[%emt 0:03:43]} g6 {[%emt 0:01:32]} 31. Qd3 {[%emt 0:02:27]} Rf6 {[%emt 0:00:24]} 32. Rd8 {[%emt 0:00:55]} Qa1+ {[%emt 0:00:16]} 33. Kh2 {[%emt 0:00:09]} Qe5 {[%emt 0:00:06]} 34. e4 {[%emt 0:00:45]} f3+ {[%emt 0:00:33]} 35. g3 {[%emt 0:00:01]} Qb2 {[%emt 0:02:25]} 36. Qd4 {[%emt 0:06:02]} Qxd4 {[%emt 0:00:51]} 37. Rxd4 {[%emt 0:00:16]} 1/2-1/2

[Event "26th Hit Open-A 2022"]
[Site "Nova Gorica"]
[Date "2022.09.17"]
[Round "2.10"]
[White "Sonis, Francesco"]
[Black "Zubova, Mariya"]
[Result "1-0"]
[ECO "E72"]
[WhiteElo "2542"]
[BlackElo "2214"]
[Annotator "ChessBase"]
[PlyCount "83"]
[EventDate "2022.09.16"]
[EventType "swiss"]
[EventCountry "SLO"]
[SourceTitle "playchess.com"]
[Source "ChessBase"]
[SourceQuality "1"]
[TimeControl "5400+30"]

1. d4 {[%emt 0:05:20]} Nf6 {[%emt 0:00:05]} 2. c4 {[%emt 0:00:07]} g6 {[%emt 0:00:09]} 3. g3 {[%emt 0:00:23]} Bg7 {[%emt 0:00:17]} 4. Bg2 {[%emt 0:00:08]} c6 {[%emt 0:00:51]} 5. e4 {[%emt 0:00:53]} d6 {[%emt 0:05:13]} 6. Nc3 {[%emt 0:00:11]} O-O {[%emt 0:00:06]} 7. Nge2 {[%emt 0:02:21]} e5 {[%emt 0:02:06]} 8. O-O {[%emt 0:00:07]} Nbd7 {[%emt 0:01:16]} 9. Qc2 {[%emt 0:02:35]} Qe7 {[%emt 0:07:27]} 10. Rd1 {[%emt 0:00:23]} Rd8 {[%emt 0:00:30]} 11. h3 {[%emt 0:00:59]} b6 {[%emt 0:09:56]} 12. b3 {[%emt 0:08:15]} Bb7 {[%emt 0:00:30]} 13. Bb2 {[%emt 0:02:17]} Nf8 {[%emt 0:03:03]} 14. a4 {[%emt 0:15:01]} exd4 {[%emt 0:08:32]} 15. Nxd4 {[%emt 0:00:09]} c5 {[%emt 0:00:37]} 16. Ndb5 {[%emt 0:05:02]} Ne6 {[%emt 0:08:41]} 17. Nd5 {[%emt 0:03:33]} Nxd5 {[%emt 0:02:27]} 18. exd5 {[%emt 0:00:22]} Bxb2 {[%emt 0:04:09]} 19. Qxb2 {[%emt 0:00:13]} Ng7 {[%emt 0:00:04]} 20. Re1 {[%emt 0:00:46]} Qf8 {[%emt 0:03:06]} 21. g4 {[%emt 0:04:06]} a6 {[%emt 0:04:40]} 22. Nc3 {[%emt 0:00:08]} f5 {[%emt 0:00:37]} 23. b4 {[%emt 0:03:28]} Bc8 {[%emt 0:01:22]} 24. g5 {[%emt 0:00:33]} Nh5 {[%emt 0:03:26]} 25. a5 {[%emt 0:09:36]} cxb4 {[%emt 0:03:56]} 26. Qxb4 {[%emt 0:00:06]} bxa5 {[%emt 0:00:07]} 27. Qxa5 {[%emt 0:00:37]} Ra7 {[%emt 0:06:29]} 28. Ne2 {[%emt 0:11:13]} Re7 {[%emt 0:01:35]} 29. Bf3 {[%emt 0:00:56]} Rde8 {[%emt 0:06:20]} 30. h4 {[%emt 0:03:44]} f4 {[%emt 0:05:18]} 31. Nd4 {[%emt 0:01:16]} Ng7 {[%emt 0:00:14]} 32. Rxe7 {[%emt 0:02:39]} Qxe7 {[%emt 0:00:08]} 33. Qd2 {[%emt 0:00:35]} Rf8 {[%emt 0:03:08]} 34. Re1 {[%emt 0:00:47]} Qf7 {[%emt 0:03:01]} 35. Nc6 {[%emt 0:03:09]} Re8 {[%emt 0:04:53]} 36. c5 {[%emt 0:02:03]} dxc5 {[%emt 0:00:56]} 37. d6 {[%emt 0:00:07]} Rxe1+ {[%emt 0:01:45]} 38. Qxe1 {[%emt 0:00:33]} Nf5 {[%emt 0:00:11]} 39. Ne7+ {[%emt 0:00:41]} Nxe7 {[%emt 0:00:09]} 40. dxe7 {[%emt 0:00:05]} Be6 {[%emt 0:00:22]} 41. Bd5 {[%emt 0:00:18]} Qxe7 {[%emt 0:00:39]} 42. Bxe6+ {[%emt 0:00:06]} 1-0

[Event "26th Hit Open-A 2022"]
[Site "Nova Gorica"]
[Date "2022.09.17"]
[Round "2.11"]
[White "Mostbauer, Florian"]
[Black "Davies, Nigel R"]
[Result "0-1"]
[ECO "D37"]
[WhiteElo "2295"]
[BlackElo "2420"]
[Annotator "ChessBase"]
[PlyCount "54"]
[EventDate "2022.09.16"]
[EventType "swiss"]
[EventCountry "SLO"]
[SourceTitle "playchess.com"]
[Source "ChessBase"]
[SourceQuality "1"]
[TimeControl "5400+30"]

1. c4 {[%emt 0:00:03]} e6 {[%emt 0:04:58]} 2. Nf3 {[%emt 0:00:48]} Nf6 {[%emt 0:00:11]} 3. Nc3 {[%emt 0:01:14]} d5 {[%emt 0:00:36]} 4. e3 {[%emt 0:00:58]} Nbd7 {[%emt 0:00:43]} 5. d4 {[%emt 0:02:51]} a6 {[%emt 0:03:09]} 6. a3 {[%emt 0:03:53]} g6 {[%emt 0:03:00]} 7. Bd3 {[%emt 0:03:50]} Bg7 {[%emt 0:00:17]} 8. O-O {[%emt 0:01:18]} O-O {[%emt 0:00:08]} 9. Qe2 {[%emt 0:03:27]} dxc4 {[%emt 0:00:49]} 10. Bxc4 {[%emt 0:00:11]} b5 {[%emt 0:00:18]} 11. Ba2 {[%emt 0:02:45]} c5 {[%emt 0:00:22]} 12. Rd1 {[%emt 0:03:44]} Qc7 {[%emt 0:08:15]} 13. Bd2 {[%emt 0:07:10]} cxd4 {[%emt 0:01:54]} 14. exd4 {[%emt 0:01:47]} Bb7 {[%emt 0:00:43]} 15. Rac1 {[%emt 0:17:29]} Qd6 {[%emt 0:02:27]} 16. g3 {[%emt 0:01:06]} Rfe8 {[%emt 0:10:19]} 17. Bf4 {[%emt 0:08:00]} Qc6 {[%emt 0:03:41]} 18. d5 {[%emt 0:03:11]} exd5 {[%emt 0:00:22]} 19. Qd2 {[%emt 0:02:56]} Nb6 {[%emt 0:05:44]} 20. Nd4 {[%emt 0:13:19]} Qd7 {[%emt 0:00:07]} 21. Ncxb5 {[%emt 0:04:58]} Nc4 {[%emt 0:02:59]} 22. Bxc4 {[%emt 0:02:02]} dxc4 {[%emt 0:02:17]} 23. Nd6 {[%emt 0:01:21]} Ne4 {[%emt 0:00:52]} 24. Qb4 {[%emt 0:04:09]} Nxd6 {[%emt 0:00:15]} 25. Qxd6 {[%emt 0:00:31]} Qh3 {[%emt 0:01:22]} 26. f3 {[%emt 0:04:51]} Bxd4+ {[%emt 0:01:56]} 27. Qxd4 {[%emt 0:01:08]} Re2 {[%emt 0:00:09]} 0-1

[Event "26th Hit Open-A 2022"]
[Site "Nova Gorica"]
[Date "2022.09.17"]
[Round "2.12"]
[White "Schreiner, Peter"]
[Black "Marchesich, Giovanni"]
[Result "1-0"]
[ECO "D02"]
[WhiteElo "2405"]
[BlackElo "2189"]
[Annotator "ChessBase"]
[PlyCount "137"]
[EventDate "2022.09.16"]
[EventType "swiss"]
[EventCountry "SLO"]
[SourceTitle "playchess.com"]
[Source "ChessBase"]
[SourceQuality "1"]
[TimeControl "5400+30"]

1. Nf3 {[%emt 0:01:16]} Nf6 {[%emt 0:00:35]} 2. g3 {[%emt 0:00:11]} g6 {[%emt 0:00:44]} 3. Bg2 {[%emt 0:01:27]} Bg7 {[%emt 0:00:28]} 4. O-O {[%emt 0:01:43]} O-O {[%emt 0:00:45]} 5. d4 {[%emt 0:01:08]} d5 {[%emt 0:01:13]} 6. c3 {[%emt 0:08:26]} Nbd7 {[%emt 0:05:35]} 7. a4 {[%emt 0:02:11]} a5 {[%emt 0:02:15]} 8. Bf4 {[%emt 0:06:12]} Nh5 {[%emt 0:08:48]} 9. Bg5 {[%emt 0:03:37]} f6 {[%emt 0:04:56]} 10. Bd2 {[%emt 0:10:10]} Nb6 {[%emt 0:06:17]} 11. Na3 {[%emt 0:09:01]} Be6 {[%emt 0:10:25]} 12. Re1 {[%emt 0:06:33]} f5 {[%emt 0:06:58]} 13. b3 {[%emt 0:03:16]} Nf6 {[%emt 0:06:32]} 14. Bf4 {[%emt 0:05:20]} c6 {[%emt 0:03:10]} 15. Rc1 {[%emt 0:01:57]} Ne4 {[%emt 0:03:18]} 16. Be5 {[%emt 0:06:01]} Bh6 {[%emt 0:02:21]} 17. e3 {[%emt 0:03:08]} g5 {[%emt 0:03:41]} 18. c4 {[%emt 0:02:19]} Nd7 {[%emt 0:05:51]} 19. cxd5 {[%emt 0:06:27]} Bxd5 {[%emt 0:00:22]} 20. Nc4 {[%emt 0:00:25]} g4 {[%emt 0:04:43]} 21. Nh4 {[%emt 0:06:07]} Ng5 {[%emt 0:16:28]} 22. Bf4 {[%emt 0:02:48]} Bxg2 {[%emt 0:00:32]} 23. Kxg2 {[%emt 0:01:40]} b5 {[%emt 0:03:20]} 24. Ne5 {[%emt 0:02:59]} Nxe5 {[%emt 0:00:36]} 25. dxe5 {[%emt 0:00:15]} bxa4 {[%emt 0:00:32]} 26. Qxd8 {[%emt 0:02:19]} Raxd8 {[%emt 0:00:09]} 27. bxa4 {[%emt 0:01:15]} Rd2 {[%emt 0:01:19]} 28. Red1 {[%emt 0:04:19]} Ra2 {[%emt 0:01:10]} 29. Rf1 {[%emt 0:00:56]} e6 {[%emt 0:00:23]} 30. Rxc6 {[%emt 0:00:32]} Rb8 {[%emt 0:00:33]} 31. Bxg5 Bxg5 {[%emt 0:00:01]} 32. Rxe6 {[%emt 0:01:14]} Bxh4 {[%emt 0:00:18]} 33. gxh4 {[%emt 0:00:02]} Rxa4 {[%emt 0:00:03]} 34. Rf6 {[%emt 0:01:23]} Rf8 {[%emt 0:00:05]} 35. Rd1 {[%emt 0:00:49]} Rxf6 {[%emt 0:00:41]} 36. exf6 {[%emt 0:00:01]} Kf7 {[%emt 0:00:18]} 37. Rd7+ {[%emt 0:00:31]} Kxf6 {[%emt 0:00:24]} 38. Rxh7 {[%emt 0:00:06]} f4 {[%emt 0:01:44]} 39. exf4 {[%emt 0:00:24]} Rxf4 {[%emt 0:00:08]} 40. Ra7 {[%emt 0:01:01]} Ra4 {[%emt 0:00:19]} 41. h3 {[%emt 0:00:21]} gxh3+ {[%emt 0:00:40]} 42. Kxh3 {[%emt 0:00:06]} Ra1 {[%emt 0:00:25]} 43. Kg4 {[%emt 0:00:29]} a4 {[%emt 0:01:06]} 44. Ra6+ {[%emt 0:00:53]} Kg7 {[%emt 0:01:14]} 45. f4 {[%emt 0:00:53]} a3 {[%emt 0:00:35]} 46. Kg5 {[%emt 0:00:26]} Rg1+ {[%emt 0:00:31]} 47. Kf5 {[%emt 0:00:07]} Ra1 {[%emt 0:00:35]} 48. Kg5 {[%emt 0:00:56]} Rg1+ {[%emt 0:00:05]} 49. Kf5 {[%emt 0:00:05]} Ra1 {[%emt 0:00:01]} 50. h5 {[%emt 0:01:10]} a2 {[%emt 0:00:25]} 51. Rg6+ {[%emt 0:00:28]} Kh7 {[%emt 0:00:08]} 52. Rg2 {[%emt 0:00:35]} Kh6 {[%emt 0:00:39]} 53. Rf2 {[%emt 0:00:29]} Kg7 {[%emt 0:00:47]} 54. Rg2+ {[%emt 0:00:17]} Kh6 {[%emt 0:00:10]} 55. Kg4 {[%emt 0:00:34]} Kg7 {[%emt 0:01:31]} 56. Kg5 {[%emt 0:00:15]} Kh7 {[%emt 0:00:54]} 57. h6 {[%emt 0:00:25]} Kh8 {[%emt 0:00:24]} 58. Kg6 {[%emt 0:00:41]} Kg8 {[%emt 0:00:08]} 59. f5 {[%emt 0:00:15]} Kh8 {[%emt 0:00:29]} 60. f6 {[%emt 0:00:45]} Re1 {[%emt 0:00:30]} 61. Rxa2 {[%emt 0:00:38]} Rg1+ {[%emt 0:00:13]} 62. Kf7 {[%emt 0:00:28]} Kh7 {[%emt 0:00:02]} 63. Ra6 {[%emt 0:00:42]} Kxh6 {[%emt 0:00:45]} 64. Ke7 {[%emt 0:00:31]} Rf1 {[%emt 0:00:35]} 65. Ra2 {[%emt 0:00:29]} Kg6 {[%emt 0:00:47]} 66. Rg2+ {[%emt 0:00:14]} Kh6 {[%emt 0:00:17]} 67. Kf7 {[%emt 0:00:18]} Rf3 {[%emt 0:00:46]} 68. Rh2+ {[%emt 0:00:20]} Kg5 {[%emt 0:00:05]} 69. Kg7 {[%emt 0:00:09]} 1-0

[Event "26th Hit Open-A 2022"]
[Site "Nova Gorica"]
[Date "2022.09.17"]
[Round "2.13"]
[White "Chkhaidze, Nikoloz"]
[Black "Fercec, Nenad"]
[Result "0-1"]
[ECO "E16"]
[WhiteElo "2239"]
[BlackElo "2403"]
[Annotator "ChessBase"]
[PlyCount "96"]
[EventDate "2022.09.16"]
[EventType "swiss"]
[EventCountry "SLO"]
[SourceTitle "playchess.com"]
[Source "ChessBase"]
[SourceQuality "1"]
[TimeControl "5400+30"]

1. d4 {[%emt 0:01:08]} Nf6 {[%emt 0:00:18]} 2. c4 {[%emt 0:00:02]} e6 {[%emt 0:00:44]} 3. Nf3 {[%emt 0:00:03]} b6 {[%emt 0:00:07]} 4. g3 {[%emt 0:00:02]} Bb7 {[%emt 0:00:06]} 5. Bg2 {[%emt 0:00:02]} g6 {[%emt 0:00:08]} 6. Nc3 {[%emt 0:00:17]} Bg7 {[%emt 0:00:08]} 7. d5 {[%emt 0:00:21]} exd5 {[%emt 0:00:55]} 8. cxd5 {[%emt 0:00:04]} O-O {[%emt 0:00:10]} 9. Nd4 {[%emt 0:02:22]} a6 {[%emt 0:13:02]} 10. a4 {[%emt 0:17:01]} c5 {[%emt 0:10:05]} 11. Nc2 {[%emt 0:11:35]} d6 {[%emt 0:01:39]} 12. O-O {[%emt 0:00:03]} Nbd7 {[%emt 0:00:16]} 13. h3 {[%emt 0:06:43]} Ne8 {[%emt 0:14:07]} 14. Bf4 {[%emt 0:04:51]} Ne5 {[%emt 0:11:42]} 15. Qc1 {[%emt 0:00:27]} Bh8 {[%emt 0:12:03]} 16. Bh6 {[%emt 0:20:29]} Ng7 {[%emt 0:00:40]} 17. Ne4 {[%emt 0:16:08]} f6 {[%emt 0:00:53]} 18. g4 {[%emt 0:01:16]} Nf7 {[%emt 0:03:24]} 19. Bf4 {[%emt 0:01:11]} f5 {[%emt 0:01:22]} 20. Ng3 {[%emt 0:06:01]} fxg4 {[%emt 0:06:09]} 21. hxg4 {[%emt 0:00:02]} Bc8 {[%emt 0:00:17]} 22. f3 {[%emt 0:01:31]} Ne8 {[%emt 0:02:05]} 23. e4 {[%emt 0:00:33]} Bd7 {[%emt 0:08:58]} 24. Ne2 {[%emt 0:01:16]} b5 {[%emt 0:00:39]} 25. axb5 {[%emt 0:00:13]} Bxb5 {[%emt 0:00:06]} 26. Rf2 {[%emt 0:02:40]} Ne5 {[%emt 0:00:27]} 27. Ne1 {[%emt 0:01:22]} Bxe2 {[%emt 0:02:30]} 28. Rxe2 {[%emt 0:00:03]} Qh4 {[%emt 0:00:47]} 29. Ra3 {[%emt 0:02:28]} Bf6 {[%emt 0:05:28]} 30. Nd3 {[%emt 0:01:19]} Nxd3 {[%emt 0:00:30]} 31. Rxd3 {[%emt 0:00:01]} Bd4+ {[%emt 0:00:17]} 32. Rxd4 {[%emt 0:02:51]} cxd4 {[%emt 0:00:05]} 33. e5 {[%emt 0:00:29]} d3 {[%emt 0:00:37]} 34. Rf2 {[%emt 0:00:07]} dxe5 {[%emt 0:00:50]} 35. Bxe5 {[%emt 0:00:02]} Nf6 {[%emt 0:00:11]} 36. d6 {[%emt 0:02:52]} Rac8 {[%emt 0:00:20]} 37. Qe3 {[%emt 0:00:31]} h5 {[%emt 0:03:26]} 38. Qxd3 {[%emt 0:00:25]} Kh7 {[%emt 0:00:37]} 39. Bf1 {[%emt 0:00:24]} Nxg4 {[%emt 0:00:27]} 40. Bd4 {[%emt 0:00:41]} Qg3+ {[%emt 0:01:52]} 41. Rg2 {[%emt 0:00:18]} Qxf3 {[%emt 0:01:21]} 42. Bc3 {[%emt 0:00:43]} Qf7 {[%emt 0:00:50]} 43. Be2 {[%emt 0:00:24]} Qa7+ {[%emt 0:00:13]} 44. Bd4 {[%emt 0:00:35]} Rc1+ {[%emt 0:00:11]} 45. Bd1 {[%emt 0:00:01]} Qd7 {[%emt 0:00:42]} 46. Bc3 {[%emt 0:01:01]} Qb5 {[%emt 0:00:44]} 47. Rd2 {[%emt 0:00:30]} Qxd3 {[%emt 0:00:20]} 48. Rxd3 {[%emt 0:00:01]} Nf2 {[%emt 0:02:01]} 0-1